[Event "*** Titled Tuesday 3|2 Blitz (Early)"]
[Site "Chess.com"]
[Date "2017.01.03"]
[Round "8"]
[White "E-Shaposhnikov"]
[Black "iturrizaga"]
[Result "1/2-1/2"]
[WhiteElo "2729"]
[BlackElo "2665"]
[TimeControl "180+2"]
[EndTime "12:46:06 PST"]
[Termination "Game drawn by agreement"]

1. e4 {[%clk 0:03:02]} 1... c5 {[%clk 0:03:01.2]} 2. Nf3 {[%clk 0:03:03]} 2...
g6 {[%clk 0:03:02.6]} 3. d4 {[%clk 0:03:01.2]} 3... cxd4 {[%clk 0:03:04.5]} 4.
Qxd4 {[%clk 0:03:02.7]} 4... Nf6 {[%clk 0:03:05.3]} 5. Nc3 {[%clk 0:03:04]} 5...
Nc6 {[%clk 0:03:06.4]} 6. Qa4 {[%clk 0:03:05.4]} 6... d6 {[%clk 0:03:06.1]} 7.
e5 {[%clk 0:03:06.9]} 7... dxe5 {[%clk 0:03:07.1]} 8. Nxe5 {[%clk 0:03:08.8]}
8... Bg7 {[%clk 0:02:58.8]} 9. Nxc6 {[%clk 0:02:59.1]} 9... bxc6 {[%clk
0:03:00.7]} 10. Be2 {[%clk 0:03:00.6]} 10... O-O {[%clk 0:03:01.1]} 11. O-O
{[%clk 0:03:01.9]} 11... Qc7 {[%clk 0:03:01.1]} 12. Bf4 {[%clk 0:03:00.9]} 12...
e5 {[%clk 0:03:02.3]} 13. Bg3 {[%clk 0:02:55.1]} 13... Nd5 {[%clk 0:03:03.8]}
14. Bf3 {[%clk 0:02:45.7]} 14... Be6 {[%clk 0:03:03.3]} 15. Rad1 {[%clk
0:02:43.1]} 15... Rab8 {[%clk 0:03:02.2]} 16. Nxd5 {[%clk 0:02:27.1]} 16... cxd5
{[%clk 0:03:01.6]} 17. Bxd5 {[%clk 0:02:26.6]} 17... Bxd5 {[%clk 0:02:38.9]} 18.
Rxd5 {[%clk 0:02:28.5]} 18... Rxb2 {[%clk 0:02:39.9]} 19. c4 {[%clk 0:02:19.9]}
19... f5 {[%clk 0:01:37.3]} 20. Rd7 {[%clk 0:02:03.1]} 20... Rb4 {[%clk
0:01:37.3]} 21. Rxg7+ {[%clk 0:01:55.6]} 21... Qxg7 {[%clk 0:01:33.8]} 22. Qxb4
{[%clk 0:01:54.6]} 22... f4 {[%clk 0:01:35.2]} 23. c5 {[%clk 0:01:36.5]} 23...
g5 {[%clk 0:01:26.8]} 24. Qc4+ {[%clk 0:01:22]} 24... Qf7 {[%clk 0:01:26.2]} 25.
Rc1 {[%clk 0:01:15.1]} 25... Qxc4 {[%clk 0:01:14.9]} 26. Rxc4 {[%clk 0:01:15.2]}
26... Rc8 {[%clk 0:00:49.3]} 27. c6 {[%clk 0:00:56.9]} 27... Kf7 {[%clk
0:00:47.5]} 28. Bxf4 {[%clk 0:00:45.7]} 28... gxf4 {[%clk 0:00:40.7]} 29. Kf1
{[%clk 0:00:41.5]} 29... Ke6 {[%clk 0:00:41.8]} 30. Ke2 {[%clk 0:00:40.6]} 30...
Kd5 {[%clk 0:00:37.6]} 31. Kd3 {[%clk 0:00:40.3]} 31... Rxc6 {[%clk 0:00:19.9]}
32. Rxc6 {[%clk 0:00:42.2]} 32... Kxc6 {[%clk 0:00:21.6]} 33. Ke4 {[%clk
0:00:43.3]} 33... Kd6 {[%clk 0:00:23.3]} 34. g4 {[%clk 0:00:37.9]} 34... fxg3
{[%clk 0:00:25.2]} 35. fxg3 {[%clk 0:00:38.8]} 35... h5 {[%clk 0:00:21.7]} 36.
a4 {[%clk 0:00:36.9]} 36... a5 {[%clk 0:00:21.2]} 37. h3 {[%clk 0:00:27.3]}
37... Ke6 {[%clk 0:00:21.6]} 38. Ke3 {[%clk 0:00:12.3]} 38... Kf6 {[%clk
0:00:18.1]} 39. Kf3 {[%clk 0:00:12.7]} 39... Kf5 {[%clk 0:00:18.2]} 40. Ke3
{[%clk 0:00:12.3]} 40... Kf6 {[%clk 0:00:06.3]} 41. Kd3 {[%clk 0:00:13.3]} 41...
Kf5 {[%clk 0:00:06.9]} 42. Ke3 {[%clk 0:00:11.8]} 42... e4 {[%clk 0:00:05.4]}
43. Ke2 {[%clk 0:00:08.3]} 43... Ke5 {[%clk 0:00:05.5]} 44. Kd2 {[%clk
0:00:08.8]} 44... Kd4 {[%clk 0:00:05.3]} 45. Ke2 {[%clk 0:00:09.2]} 45... Ke5
{[%clk 0:00:06]} 46. Kf2 {[%clk 0:00:07.4]} 46... Kf6 {[%clk 0:00:06.1]} 47. Ke3
{[%clk 0:00:07.4]} 47... Kf5 {[%clk 0:00:06.3]} 48. g4+ {[%clk 0:00:06.4]} 48...
hxg4 {[%clk 0:00:07.1]} 49. hxg4+ {[%clk 0:00:08]} 49... Kxg4 {[%clk 0:00:08.4]}
50. Kxe4 {[%clk 0:00:09.7]} 50... Kg5 {[%clk 0:00:09.9]} 51. Ke5 {[%clk
0:00:11.5]} 51... Kg6 {[%clk 0:00:11]} 52. Ke6 {[%clk 0:00:12.7]} 52... Kg7
{[%clk 0:00:12.3]} 53. Ke7 {[%clk 0:00:13.8]} 53... Kg6 {[%clk 0:00:13.3]} 54.
Kd6 {[%clk 0:00:14.9]} 54... Kf6 {[%clk 0:00:14.6]} 55. Kc6 {[%clk 0:00:16.1]}
55... Ke6 {[%clk 0:00:16]} 56. Kb6 {[%clk 0:00:17.1]} 56... Kd6 {[%clk
0:00:17.6]} 57. Kxa5 {[%clk 0:00:18.4]} 57... Kc7 {[%clk 0:00:19.5]} 1/2-1/2

[Event "*** Titled Tuesday 3|2 Blitz (Early)"]
[Site "Chess.com"]
[Date "2017.01.03"]
[Round "8"]
[White "poummba"]
[Black "Vrolijk"]
[Result "0-1"]
[WhiteElo "2419"]
[BlackElo "2294"]
[TimeControl "180+2"]
[EndTime "12:46:09 PST"]
[Termination "Vrolijk won on time"]

1. e4 {[%clk 0:03:02]} 1... e6 {[%clk 0:02:59]} 2. d4 {[%clk 0:03:02.8]} 2... d5
{[%clk 0:03:00.1]} 3. Nc3 {[%clk 0:03:04.3]} 3... Nf6 {[%clk 0:03:01.2]} 4. Bg5
{[%clk 0:03:03.4]} 4... dxe4 {[%clk 0:03:01.3]} 5. Nxe4 {[%clk 0:03:03.7]} 5...
Be7 {[%clk 0:03:02.8]} 6. Bxf6 {[%clk 0:03:04.7]} 6... gxf6 {[%clk 0:03:04.7]}
7. Nf3 {[%clk 0:03:05.9]} 7... f5 {[%clk 0:03:05.3]} 8. Nc3 {[%clk 0:03:06.5]}
8... a6 {[%clk 0:03:06]} 9. Qe2 {[%clk 0:03:06.9]} 9... b5 {[%clk 0:02:55.1]}
10. O-O-O {[%clk 0:03:02.8]} 10... b4 {[%clk 0:02:54.4]} 11. Na4 {[%clk
0:03:03.5]} 11... Qd5 {[%clk 0:02:54]} 12. Qc4 {[%clk 0:02:59.5]} 12... Qxc4
{[%clk 0:02:35.7]} 13. Bxc4 {[%clk 0:03:00.1]} 13... Bd7 {[%clk 0:02:36.8]} 14.
Bb3 {[%clk 0:02:37.8]} 14... Bd6 {[%clk 0:02:28.7]} 15. Ne5 {[%clk 0:02:28.8]}
15... Nc6 {[%clk 0:02:21.8]} 16. Nxd7 {[%clk 0:02:26.2]} 16... Kxd7 {[%clk
0:02:23.7]} 17. d5 {[%clk 0:02:25.6]} 17... Na5 {[%clk 0:02:13.4]} 18. dxe6+
{[%clk 0:02:26.9]} 18... fxe6 {[%clk 0:02:15.3]} 19. Nc5+ {[%clk 0:02:28.1]}
19... Ke7 {[%clk 0:02:16.1]} 20. Rhe1 {[%clk 0:02:08.3]} 20... Nxb3+ {[%clk
0:01:49.2]} 21. Nxb3 {[%clk 0:02:05.2]} 21... Kf7 {[%clk 0:01:48.7]} 22. g4
{[%clk 0:01:56.3]} 22... fxg4 {[%clk 0:01:36.6]} 23. Re4 {[%clk 0:01:57.4]}
23... h5 {[%clk 0:01:37.9]} 24. f3 {[%clk 0:01:56.2]} 24... gxf3 {[%clk
0:01:38]} 25. Rf1 {[%clk 0:01:57.4]} 25... Rag8 {[%clk 0:01:30.1]} 26. Rxf3+
{[%clk 0:01:52.2]} 26... Ke7 {[%clk 0:01:30.4]} 27. Nd4 {[%clk 0:01:49.9]} 27...
Rg1+ {[%clk 0:01:29.3]} 28. Kd2 {[%clk 0:01:50.8]} 28... e5 {[%clk 0:01:22.4]}
29. Nc6+ {[%clk 0:01:41.8]} 29... Ke6 {[%clk 0:01:17.8]} 30. Rfe3 {[%clk
0:01:34.1]} 30... Rg2+ {[%clk 0:01:14.3]} 31. Kd3 {[%clk 0:01:35.5]} 31... Rg5
{[%clk 0:01:07]} 32. h4 {[%clk 0:01:36.2]} 32... Rg4 {[%clk 0:01:04.2]} 33. Nd4+
{[%clk 0:01:04.8]} 33... Kd5 {[%clk 0:01:00]} 34. Nf5 {[%clk 0:01:03.2]} 34...
Rf8 {[%clk 0:00:54.1]} 35. Rxg4 {[%clk 0:00:35.3]} 35... hxg4 {[%clk 0:00:56]}
36. Nh6 {[%clk 0:00:36.9]} 36... g3 {[%clk 0:00:53]} 37. Re4 {[%clk 0:00:20.1]}
37... Rf4 {[%clk 0:00:46.2]} 38. Rxf4 {[%clk 0:00:17.9]} 38... exf4 {[%clk
0:00:48.1]} 39. Ke2 {[%clk 0:00:19.8]} 39... Bc5 {[%clk 0:00:42.3]} 40. Kf3
{[%clk 0:00:20.6]} 40... Ke5 {[%clk 0:00:31.2]} 41. Nf7+ {[%clk 0:00:18.3]}
41... Kf5 {[%clk 0:00:32.1]} 42. Nd8 {[%clk 0:00:11.8]} 42... Bd6 {[%clk
0:00:29.8]} 43. Nc6 {[%clk 0:00:11.6]} 43... Kg6 {[%clk 0:00:29.4]} 44. Nd4
{[%clk 0:00:06.6]} 44... c5 {[%clk 0:00:27.6]} 45. Ne2 {[%clk 0:00:06.1]} 45...
Kh5 {[%clk 0:00:27.6]} 46. c3 {[%clk 0:00:04.4]} 46... bxc3 {[%clk 0:00:28]} 47.
Nxc3 {[%clk 0:00:05.9]} 47... Kxh4 {[%clk 0:00:29.4]} 48. Ne4 {[%clk 0:00:07.5]}
48... Be5 {[%clk 0:00:29.8]} 49. Nxc5 {[%clk 0:00:07.8]} 49... Kh3 {[%clk
0:00:29.7]} 50. Nd3 {[%clk 0:00:09.2]} 50... g2 {[%clk 0:00:27.7]} 51. Nf2+
{[%clk 0:00:09.7]} 51... Kh2 {[%clk 0:00:28.3]} 52. Ng4+ {[%clk 0:00:11.2]}
52... Kh3 {[%clk 0:00:26.2]} 53. Nf2+ {[%clk 0:00:12.2]} 53... Kh2 {[%clk
0:00:25.4]} 54. Ng4+ {[%clk 0:00:13.2]} 54... Kg1 {[%clk 0:00:24.2]} 55. Nxe5
{[%clk 0:00:14.2]} 55... Kf1 {[%clk 0:00:25]} 56. Nc4 {[%clk 0:00:03.4]} 56...
g1=Q {[%clk 0:00:24.9]} 57. Nd2+ {[%clk 0:00:05.3]} 57... Ke1 {[%clk 0:00:25.8]}
0-1

[Event "*** Titled Tuesday 3|2 Blitz (Early)"]
[Site "Chess.com"]
[Date "2017.01.03"]
[Round "8"]
[White "Aygehovit1992"]
[Black "Iball95"]
[Result "1-0"]
[WhiteElo "2474"]
[BlackElo "2464"]
[TimeControl "180+2"]
[EndTime "12:47:13 PST"]
[Termination "Aygehovit1992 won by resignation"]

1. e4 {[%clk 0:02:38.1]} 1... c5 {[%clk 0:03:00]} 2. Nf3 {[%clk 0:02:38.6]} 2...
Nc6 {[%clk 0:03:01]} 3. Bb5 {[%clk 0:02:35.9]} 3... g6 {[%clk 0:03:01.2]} 4.
Bxc6 {[%clk 0:02:36.5]} 4... dxc6 {[%clk 0:03:02.6]} 5. d3 {[%clk 0:02:37.2]}
5... Bg7 {[%clk 0:03:03.5]} 6. h3 {[%clk 0:02:38.8]} 6... Nf6 {[%clk 0:03:01.2]}
7. Nc3 {[%clk 0:02:39.3]} 7... e5 {[%clk 0:02:56.1]} 8. Be3 {[%clk 0:02:40]}
8... b6 {[%clk 0:02:47.8]} 9. Qd2 {[%clk 0:02:18.8]} 9... O-O {[%clk 0:02:45.7]}
10. Bh6 {[%clk 0:02:18.4]} 10... Qd6 {[%clk 0:02:45.2]} 11. Bxg7 {[%clk
0:02:01]} 11... Kxg7 {[%clk 0:02:47.1]} 12. O-O-O {[%clk 0:01:57.3]} 12... a5
{[%clk 0:02:47.5]} 13. g4 {[%clk 0:01:54.4]} 13... a4 {[%clk 0:02:45.6]} 14. Ne2
{[%clk 0:01:54.6]} 14... Be6 {[%clk 0:02:32.2]} 15. Ng3 {[%clk 0:01:35.1]} 15...
Bxa2 {[%clk 0:02:05.1]} 16. Qg5 {[%clk 0:01:35.5]} 16... Kh8 {[%clk 0:01:51.9]}
17. Qxe5 {[%clk 0:01:30.1]} 17... Qxe5 {[%clk 0:01:48.3]} 18. Nxe5 {[%clk
0:01:31.8]} 18... Rac8 {[%clk 0:01:41.5]} 19. f4 {[%clk 0:01:31.8]} 19... Rfe8
{[%clk 0:01:23.3]} 20. g5 {[%clk 0:01:28.6]} 20... Ng8 {[%clk 0:01:23.6]} 21. h4
{[%clk 0:01:29.3]} 21... h5 {[%clk 0:00:54.7]} 22. gxh6 {[%clk 0:01:24.5]} 22...
Nxh6 {[%clk 0:00:54.2]} 23. h5 {[%clk 0:01:24.6]} 23... g5 {[%clk 0:00:55.4]}
24. fxg5 {[%clk 0:01:21.1]} 24... Rxe5 {[%clk 0:00:56.6]} 25. gxh6 {[%clk
0:01:22.1]} 25... Be6 {[%clk 0:00:56.7]} 26. Rdf1 {[%clk 0:01:22.9]} 26... Rg8
{[%clk 0:00:53.8]} 27. Ne2 {[%clk 0:01:05.9]} 27... c4 {[%clk 0:00:51.3]} 28.
Nc3 {[%clk 0:00:53.6]} 28... cxd3 {[%clk 0:00:49.2]} 29. cxd3 {[%clk 0:00:54.7]}
29... Rg2 {[%clk 0:00:47.6]} 30. d4 {[%clk 0:00:46.4]} 30... Ra5 {[%clk
0:00:47.8]} 31. Rhg1 {[%clk 0:00:20.7]} 31... Rh2 {[%clk 0:00:35.6]} 32. d5
{[%clk 0:00:21.6]} 32... cxd5 {[%clk 0:00:35.3]} 33. exd5 {[%clk 0:00:22.9]}
33... a3 {[%clk 0:00:32.7]} 34. bxa3 {[%clk 0:00:14.8]} 34... Bxd5 {[%clk
0:00:23.3]} 35. Nxd5 {[%clk 0:00:11.8]} 35... Rxd5 {[%clk 0:00:25.2]} 36. Rxf7
{[%clk 0:00:12.5]} 36... Rc5+ {[%clk 0:00:20]} 37. Kb1 {[%clk 0:00:05.9]} 37...
Rb5+ {[%clk 0:00:20.8]} 38. Ka1 {[%clk 0:00:07.2]} 38... Rbb2 {[%clk 0:00:19.2]}
39. h7 {[%clk 0:00:05.6]} 39... Ra2+ {[%clk 0:00:19.6]} 40. Kb1 {[%clk 0:00:07]}
40... Rhb2+ {[%clk 0:00:20.3]} 41. Kc1 {[%clk 0:00:08.5]} 41... Rg2 {[%clk
0:00:21]} 42. Rxg2 {[%clk 0:00:08.7]} 42... Rxg2 {[%clk 0:00:22.9]} 43. Rb7
{[%clk 0:00:09.9]} 43... Ra2 {[%clk 0:00:22.2]} 44. Ra7 {[%clk 0:00:08.8]} 44...
b5 {[%clk 0:00:22.5]} 45. Kb1 {[%clk 0:00:09.6]} 45... Rh2 {[%clk 0:00:23]} 46.
Rb7 {[%clk 0:00:09.5]} 46... Rxh5 {[%clk 0:00:23.8]} 47. Kb2 {[%clk 0:00:10.6]}
47... Re5 {[%clk 0:00:07.3]} 48. Kb3 {[%clk 0:00:09.7]} 48... Rh5 {[%clk
0:00:08.1]} 49. Kb4 {[%clk 0:00:09.2]} 49... Rh4+ {[%clk 0:00:07.8]} 50. Kb3
{[%clk 0:00:05.8]} 50... Rh5 {[%clk 0:00:08.5]} 51. Rb8+ {[%clk 0:00:04.8]}
51... Kxh7 {[%clk 0:00:08.8]} 52. Kb4 {[%clk 0:00:06.7]} 52... Kg7 {[%clk
0:00:05.5]} 53. Rxb5 {[%clk 0:00:07.1]} 53... Rh1 {[%clk 0:00:05.5]} 54. Rf5
{[%clk 0:00:06.7]} 54... Rb1+ {[%clk 0:00:05.9]} 55. Ka5 {[%clk 0:00:07.4]}
55... Kg6 {[%clk 0:00:05.4]} 56. Rf8 {[%clk 0:00:06.8]} 56... Kg7 {[%clk
0:00:06]} 57. Rf4 {[%clk 0:00:07.3]} 57... Re1 {[%clk 0:00:06]} 58. a4 {[%clk
0:00:08.5]} 58... Re5+ {[%clk 0:00:06.7]} 59. Kb6 {[%clk 0:00:09.1]} 59... Re6+
{[%clk 0:00:07.5]} 60. Kb5 {[%clk 0:00:10.3]} 60... Re5+ {[%clk 0:00:07.3]} 61.
Kb4 {[%clk 0:00:11.5]} 61... Re1 {[%clk 0:00:06]} 62. a5 {[%clk 0:00:12.5]}
62... Rb1+ {[%clk 0:00:07.2]} 63. Kc5 {[%clk 0:00:13.6]} 63... Rc1+ {[%clk
0:00:08.3]} 64. Kb5 {[%clk 0:00:15]} 64... Rb1+ {[%clk 0:00:09.1]} 65. Rb4
{[%clk 0:00:15.9]} 65... Ra1 {[%clk 0:00:09.9]} 66. a6 {[%clk 0:00:17.2]} 66...
Kf7 {[%clk 0:00:09.6]} 67. Ra4 {[%clk 0:00:18.4]} 67... Rb1+ {[%clk 0:00:10.6]}
68. Ka5 {[%clk 0:00:19.4]} 68... Rb8 {[%clk 0:00:11.5]} 69. a7 {[%clk
0:00:20.6]} 69... Rh8 {[%clk 0:00:09.9]} 70. Rb4 {[%clk 0:00:20.6]} 70... Ke6
{[%clk 0:00:09.3]} 71. Rb8 {[%clk 0:00:21.3]} 71... Rh5+ {[%clk 0:00:10.4]} 72.
Ka6 {[%clk 0:00:22.1]} 72... Rh1 {[%clk 0:00:11.2]} 73. a8=Q {[%clk 0:00:23.3]}
1-0

[Event "*** Titled Tuesday 3|2 Blitz (Early)"]
[Site "Chess.com"]
[Date "2017.01.03"]
[Round "8"]
[White "Gordima"]
[Black "aspired"]
[Result "0-1"]
[WhiteElo "2466"]
[BlackElo "2424"]
[TimeControl "180+2"]
[EndTime "12:47:36 PST"]
[Termination "aspired won on time"]

1. e4 {[%clk 0:03:00.1]} 1... e5 {[%clk 0:03:00.4]} 2. Nf3 {[%clk 0:02:58.6]}
2... Nc6 {[%clk 0:03:01.8]} 3. Nc3 {[%clk 0:02:59.5]} 3... Nf6 {[%clk
0:03:02.5]} 4. d4 {[%clk 0:03:00.5]} 4... exd4 {[%clk 0:03:00.6]} 5. Nxd4 {[%clk
0:03:02.4]} 5... Bb4 {[%clk 0:02:57.2]} 6. Nxc6 {[%clk 0:03:03.6]} 6... bxc6
{[%clk 0:02:58.6]} 7. Bd3 {[%clk 0:03:04.3]} 7... O-O {[%clk 0:02:59.4]} 8. O-O
{[%clk 0:03:04.9]} 8... Re8 {[%clk 0:03:00.8]} 9. Qf3 {[%clk 0:03:03.1]} 9... d6
{[%clk 0:02:56.4]} 10. h3 {[%clk 0:03:04.1]} 10... Bxc3 {[%clk 0:02:50.9]} 11.
bxc3 {[%clk 0:03:04.6]} 11... Nd7 {[%clk 0:02:52.1]} 12. Qg3 {[%clk 0:03:01.4]}
12... Nc5 {[%clk 0:02:47.8]} 13. Re1 {[%clk 0:02:57.4]} 13... Qf6 {[%clk
0:02:43.1]} 14. Bg5 {[%clk 0:02:55.1]} 14... Qxc3 {[%clk 0:02:41]} 15. e5 {[%clk
0:02:25.6]} 15... Nxd3 {[%clk 0:02:40]} 16. Bf6 {[%clk 0:02:12.3]} 16... g6
{[%clk 0:02:36.6]} 17. cxd3 {[%clk 0:02:11.9]} 17... dxe5 {[%clk 0:01:47.1]} 18.
Qg5 {[%clk 0:01:34.3]} 18... Re6 {[%clk 0:00:49.4]} 19. Rac1 {[%clk 0:00:59.4]}
19... Qb4 {[%clk 0:00:47.3]} 20. Bxe5 {[%clk 0:00:55.4]} 20... Qe7 {[%clk
0:00:46.7]} 21. Qxe7 {[%clk 0:00:39.8]} 21... Rxe7 {[%clk 0:00:48.6]} 22. Rxc6
{[%clk 0:00:38.5]} 22... Bf5 {[%clk 0:00:46.7]} 23. d4 {[%clk 0:00:37]} 23...
Rc8 {[%clk 0:00:23.5]} 24. Rec1 {[%clk 0:00:37.6]} 24... Be4 {[%clk 0:00:21.3]}
25. Rxc7 {[%clk 0:00:29.3]} 25... Rexc7 {[%clk 0:00:22.3]} 26. Bxc7 {[%clk
0:00:30.5]} 26... f6 {[%clk 0:00:20.9]} 27. f3 {[%clk 0:00:31.6]} 27... Bd5
{[%clk 0:00:21.6]} 28. Rc5 {[%clk 0:00:29.5]} 28... Bxa2 {[%clk 0:00:20.6]} 29.
Kf2 {[%clk 0:00:17.9]} 29... Kf7 {[%clk 0:00:21.1]} 30. Ke3 {[%clk 0:00:15.8]}
30... Ke6 {[%clk 0:00:22.1]} 31. Ra5 {[%clk 0:00:08.8]} 31... Rxc7 {[%clk
0:00:16.6]} 32. Rxa2 {[%clk 0:00:08]} 32... h5 {[%clk 0:00:12.9]} 33. g4 {[%clk
0:00:08.2]} 33... hxg4 {[%clk 0:00:13.4]} 34. hxg4 {[%clk 0:00:09.3]} 34... Re7
{[%clk 0:00:14.2]} 35. Kd3 {[%clk 0:00:09.6]} 35... f5 {[%clk 0:00:13.1]} 36.
Ra6+ {[%clk 0:00:09.3]} 36... Kd5 {[%clk 0:00:13.9]} 37. Rxg6 {[%clk 0:00:08.9]}
37... fxg4 {[%clk 0:00:14.6]} 38. Rg5+ {[%clk 0:00:07.8]} 38... Kd6 {[%clk
0:00:15.5]} 39. fxg4 {[%clk 0:00:06]} 39... Rh7 {[%clk 0:00:16.6]} 40. Kc4
{[%clk 0:00:06.6]} 40... Rc7+ {[%clk 0:00:14.7]} 41. Rc5 {[%clk 0:00:07.6]}
41... Rf7 {[%clk 0:00:13.5]} 42. Rd5+ {[%clk 0:00:08.5]} 42... Kc6 {[%clk
0:00:14]} 43. Rf5 {[%clk 0:00:08]} 43... Rg7 {[%clk 0:00:14.3]} 44. g5 {[%clk
0:00:08.1]} 44... Kd7 {[%clk 0:00:14.6]} 45. Kc5 {[%clk 0:00:08.3]} 45... Rg6
{[%clk 0:00:15.8]} 46. d5 {[%clk 0:00:09.4]} 46... Ra6 {[%clk 0:00:16.1]} 47.
Rf7+ {[%clk 0:00:10.4]} 47... Ke8 {[%clk 0:00:17.3]} 48. Rf6 {[%clk 0:00:11.4]}
48... Ra1 {[%clk 0:00:17.6]} 49. g6 {[%clk 0:00:11.1]} 49... Rg1 {[%clk
0:00:18.4]} 50. d6 {[%clk 0:00:10.3]} 50... Kd7 {[%clk 0:00:18.2]} 51. Rf7+
{[%clk 0:00:10.8]} 51... Ke6 {[%clk 0:00:18.9]} 52. Re7+ {[%clk 0:00:12.1]}
52... Kf6 {[%clk 0:00:20.4]} 53. Rxa7 {[%clk 0:00:10.6]} 53... Rc1+ {[%clk
0:00:19.9]} 54. Kd5 {[%clk 0:00:10.2]} 54... Rd1+ {[%clk 0:00:19.3]} 55. Kc6
{[%clk 0:00:11.4]} 55... Rc1+ {[%clk 0:00:19.6]} 56. Kd7 {[%clk 0:00:12.2]}
56... Kxg6 {[%clk 0:00:21.1]} 57. Ra2 {[%clk 0:00:12.9]} 57... Kf6 {[%clk
0:00:21.3]} 58. Re2 {[%clk 0:00:13.8]} 58... Ra1 {[%clk 0:00:18.4]} 59. Kc8
{[%clk 0:00:11.5]} 59... Rc1+ {[%clk 0:00:18.2]} 60. Kd8 {[%clk 0:00:12]} 60...
Kf7 {[%clk 0:00:19]} 61. d7 {[%clk 0:00:12.8]} 61... Kf8 {[%clk 0:00:19.8]} 62.
Rf2+ {[%clk 0:00:13.4]} 62... Kg7 {[%clk 0:00:20.7]} 63. Rf4 {[%clk 0:00:14.3]}
63... Kg6 {[%clk 0:00:19.2]} 64. Ke7 {[%clk 0:00:11.5]} 64... Re1+ {[%clk
0:00:19]} 65. Kd6 {[%clk 0:00:03.8]} 65... Rd1+ {[%clk 0:00:20.9]} 66. Ke6
{[%clk 0:00:05.1]} 66... Rxd7 {[%clk 0:00:21.9]} 0-1

[Event "*** Titled Tuesday 3|2 Blitz (Early)"]
[Site "Chess.com"]
[Date "2017.01.03"]
[Round "8"]
[White "ABDELAZEEZ-M"]
[Black "Fablibi"]
[Result "0-1"]
[WhiteElo "2065"]
[BlackElo "2477"]
[TimeControl "180+2"]
[EndTime "12:48:09 PST"]
[Termination "Fablibi won on time"]

1. d4 {[%clk 0:02:58.4]} 1... d5 {[%clk 0:03:00.2]} 2. Bf4 {[%clk 0:02:58.2]}
2... Nc6 {[%clk 0:02:50.4]} 3. e3 {[%clk 0:02:58.6]} 3... f6 {[%clk 0:02:35.3]}
4. Nc3 {[%clk 0:02:56.1]} 4... e5 {[%clk 0:02:27.1]} 5. Bg3 {[%clk 0:02:50.8]}
5... Bb4 {[%clk 0:02:07.3]} 6. Bb5 {[%clk 0:02:50.5]} 6... e4 {[%clk 0:02:04.2]}
7. a3 {[%clk 0:02:47.4]} 7... Bxc3+ {[%clk 0:02:03.8]} 8. bxc3 {[%clk 0:02:48]}
8... Ne7 {[%clk 0:02:04.8]} 9. c4 {[%clk 0:02:46.1]} 9... a6 {[%clk 0:02:04.2]}
10. Bxc6+ {[%clk 0:02:33.3]} 10... bxc6 {[%clk 0:02:06.1]} 11. c5 {[%clk
0:02:31.3]} 11... a5 {[%clk 0:02:04.2]} 12. Ne2 {[%clk 0:02:29]} 12... Ba6
{[%clk 0:02:05]} 13. O-O {[%clk 0:02:29.1]} 13... O-O {[%clk 0:02:04.2]} 14. Re1
{[%clk 0:02:28.6]} 14... Nf5 {[%clk 0:02:03.4]} 15. Nf4 {[%clk 0:02:26.4]} 15...
Qd7 {[%clk 0:02:01.8]} 16. Qg4 {[%clk 0:01:57.4]} 16... Rad8 {[%clk 0:01:56.8]}
17. Rab1 {[%clk 0:01:44.6]} 17... Bb5 {[%clk 0:01:56.5]} 18. a4 {[%clk
0:01:11.2]} 18... Bxa4 {[%clk 0:01:57.3]} 19. Ra1 {[%clk 0:01:11.9]} 19... Bxc2
{[%clk 0:01:55.9]} 20. Rxa5 {[%clk 0:01:11.4]} 20... Nxg3 {[%clk 0:01:45.1]} 21.
Qxg3 {[%clk 0:01:09.8]} 21... Rb8 {[%clk 0:01:43.6]} 22. Ra7 {[%clk 0:01:08.9]}
22... Rf7 {[%clk 0:01:31.7]} 23. Nh5 {[%clk 0:01:01.9]} 23... Kh8 {[%clk
0:01:29.7]} 24. h4 {[%clk 0:00:57.2]} 24... Bd3 {[%clk 0:01:29.4]} 25. Rea1
{[%clk 0:00:57.4]} 25... Bb5 {[%clk 0:01:28]} 26. Ra8 {[%clk 0:00:52.6]} 26...
Rff8 {[%clk 0:01:18.6]} 27. Rxb8 {[%clk 0:00:51]} 27... Rxb8 {[%clk 0:01:18.6]}
28. Ra7 {[%clk 0:00:51.5]} 28... Rc8 {[%clk 0:01:19.9]} 29. Nf4 {[%clk
0:00:36.7]} 29... g6 {[%clk 0:01:18]} 30. Qh3 {[%clk 0:00:30.9]} 30... Qxh3
{[%clk 0:01:17.6]} 31. gxh3 {[%clk 0:00:31.7]} 31... Kg8 {[%clk 0:01:08]} 32.
Ne6 {[%clk 0:00:32.6]} 32... Be2 {[%clk 0:01:08.3]} 33. Nxc7 {[%clk 0:00:32.5]}
33... Rb8 {[%clk 0:01:07.8]} 34. Ra8 {[%clk 0:00:32.5]} 34... Rxa8 {[%clk
0:01:08.8]} 35. Nxa8 {[%clk 0:00:33.9]} 35... Kf7 {[%clk 0:01:10.4]} 36. Nb6
{[%clk 0:00:35.2]} 36... Ke6 {[%clk 0:01:10.1]} 37. Kh2 {[%clk 0:00:34.7]} 37...
h5 {[%clk 0:01:11]} 38. Kg3 {[%clk 0:00:35.4]} 38... Bf1 {[%clk 0:01:08]} 39.
Nc8 {[%clk 0:00:32]} 39... Kd7 {[%clk 0:01:03.1]} 40. Nb6+ {[%clk 0:00:31.8]}
40... Kc7 {[%clk 0:01:03.6]} 41. Na8+ {[%clk 0:00:27.5]} 41... Kc8 {[%clk
0:01:00.4]} 42. Nb6+ {[%clk 0:00:28.5]} 42... Kd8 {[%clk 0:01:02.1]} 43. Na8
{[%clk 0:00:27.2]} 43... Be2 {[%clk 0:01:00.3]} 44. Nb6 {[%clk 0:00:28.2]} 44...
Bd1 {[%clk 0:01:01.5]} 45. Na8 {[%clk 0:00:22.7]} 45... Be2 {[%clk 0:00:55.9]}
46. Nb6 {[%clk 0:00:21.2]} 46... Ba6 {[%clk 0:00:56.8]} 47. Na8 {[%clk
0:00:20.8]} 47... Bc8 {[%clk 0:00:57.8]} 48. Nb6 {[%clk 0:00:20.9]} 48... Be6
{[%clk 0:00:58.8]} 49. Na8 {[%clk 0:00:20.6]} 49... Kc8 {[%clk 0:01:00.1]} 50.
Nb6+ {[%clk 0:00:20.8]} 50... Kb7 {[%clk 0:01:01.6]} 51. Kg2 {[%clk 0:00:22.7]}
51... Ka6 {[%clk 0:01:02.8]} 52. Kg3 {[%clk 0:00:24.6]} 52... Kb5 {[%clk
0:01:04.1]} 53. Kg2 {[%clk 0:00:26.5]} 53... Kb4 {[%clk 0:01:05.5]} 54. Kg3
{[%clk 0:00:28.4]} 54... Kc3 {[%clk 0:01:06.8]} 55. Na4+ {[%clk 0:00:29.3]}
55... Kb3 {[%clk 0:01:06.5]} 56. Nb6 {[%clk 0:00:31.2]} 56... Kc2 {[%clk
0:01:07.8]} 57. Na8 {[%clk 0:00:30.6]} 57... Kd2 {[%clk 0:01:06.5]} 58. Nc7
{[%clk 0:00:31.4]} 58... Bd7 {[%clk 0:01:07.8]} 59. Na6 {[%clk 0:00:31.7]} 59...
Ke2 {[%clk 0:01:06.4]} 60. Nb8 {[%clk 0:00:32.5]} 60... Be8 {[%clk 0:01:07]} 61.
Na6 {[%clk 0:00:33.9]} 61... g5 {[%clk 0:01:04.9]} 62. Nc7 {[%clk 0:00:32.6]}
62... Bd7 {[%clk 0:01:05.6]} 63. hxg5 {[%clk 0:00:31.2]} 63... fxg5 {[%clk
0:01:07.5]} 64. Na6 {[%clk 0:00:31]} 64... h4+ {[%clk 0:01:02.8]} 65. Kg2 {[%clk
0:00:31.5]} 65... g4 {[%clk 0:00:56]} 66. hxg4 {[%clk 0:00:31]} 66... Bxg4
{[%clk 0:00:57.9]} 67. Nb8 {[%clk 0:00:27]} 67... h3+ {[%clk 0:00:58.9]} 68. Kg1
{[%clk 0:00:25.1]} 68... h2+ {[%clk 0:00:59.9]} 69. Kxh2 {[%clk 0:00:25.5]}
69... Kxf2 {[%clk 0:01:01]} 70. Nxc6 {[%clk 0:00:18.1]} 70... Kxe3 {[%clk
0:01:02.6]} 71. Kg3 {[%clk 0:00:10.1]} 71... Bd7 {[%clk 0:01:00.1]} 72. Ne5
{[%clk 0:00:08.9]} 72... Bc8 {[%clk 0:01:00.9]} 73. Nc6 {[%clk 0:00:07.5]} 73...
Kd2 {[%clk 0:00:56.4]} 74. Nb4 {[%clk 0:00:02.5]} 74... e3 {[%clk 0:00:56.3]}
0-1